bitfinex/quotes_BTCUSD_20251209
["timestamp","ask_amount","ask_price","bid_price","bid_amount"]
[1765297284384,0.05031808,93590.0,93589.0,0.23521828]
[1765297285149,0.05031808,93590.0,93589.0,0.23721828]
[1765297285675,0.05031808,93590.0,93589.0,0.24021828]
[1765297285875,0.05031808,93590.0,93589.0,0.23521828]
[1765297286080,0.05031808,93590.0,93589.0,0.21570032]
[1765297286232,0.05031808,93590.0,93589.0,0.24221828]
[1765297286443,0.05031808,93590.0,93589.0,0.23721828]
[1765297286690,0.05031808,93590.0,93589.0,0.24221828]
[1765297286885,0.05031808,93590.0,93589.0,0.23721828]
[1765297287113,0.01068501,93589.0,93585.0,0.01068547]
[1765297287437,0.01068501,93589.0,93560.0,0.62306177]
[1765297287438,0.00161287,93586.0,93583.0,0.22439761]
[1765297287634,0.00161287,93586.0,93584.0,0.21371038]
[1765297287852,0.00161287,93586.0,93583.0,0.0106857]
[1765297287853,0.00161287,93586.0,93583.0,0.2243973]
[1765297288046,0.00161287,93584.0,93565.0,0.02151796]
[1765297288219,0.0106873,93569.0,93565.0,0.01068775]
[1765297288425,0.01068821,93561.0,93556.0,0.01068878]
[1765297288626,0.00161287,93569.0,93568.0,0.21374829]
[1765297288827,0.01068558,93584.0,93579.0,0.01068615]
[1765297288989,0.02853395,93583.0,93577.0,0.01068638]
[1765297289196,0.00161287,93583.0,93581.0,0.21371728]
[1765297289396,0.2137216,93580.0,93576.0,0.0106865]
[1765297289595,0.01068638,93577.0,93569.0,0.0106873]
[1765297289906,0.00161287,93570.0,93558.0,0.01068855]
[1765297290130,0.0106873,93569.0,93566.0,0.01068764]
[1765297290338,0.0106873,93569.0,93547.0,0.01212893]
[1765297290339,0.01230017,93569.0,93558.0,0.01068855]
[1765297290574,0.01230017,93569.0,93565.0,0.01068775]
[1765297290790,0.01230017,93569.0,93568.0,0.21374829]
[1765297290791,0.00161287,93569.0,93568.0,0.21374829]
[1765297290931,0.00161287,93569.0,93566.0,0.01068764]
[1765297291134,0.00161287,93569.0,93567.0,0.21375057]
[1765297291736,0.00661287,93569.0,93567.0,0.21375057]
[1765297291945,0.005,93569.0,93568.0,0.02151796]
[1765297292687,0.01068615,93579.0,93576.0,0.0106865]
[1765297292888,0.01068627,93578.0,93574.0,0.01068672]
[1765297293110,0.00011808,93579.0,93576.0,0.0106865]
[1765297293561,0.00011808,93579.0,93577.0,0.21372773]
[1765297294364,0.00011808,93579.0,93576.0,0.0116865]
[1765297294565,0.00011808,93579.0,93576.0,0.001]
[1765297294566,0.32042113,93578.0,93576.0,0.001]
[1765297294719,0.00033932,93577.0,93576.0,0.00048]
[1765297295120,0.02242731,93577.0,93576.0,0.00048]
[1765297295357,0.01263857,93577.0,93561.0,0.01068821]
[1765297295559,0.01068718,93570.0,93566.0,0.21375252]
[1765297295758,0.01068718,93570.0,93567.0,0.01068752]
[1765297295967,0.00161287,93570.0,93568.0,0.21374729]
[1765297296239,0.00022622,93573.0,93572.0,0.21373915]
[1765297296441,0.00022622,93573.0,93572.0,0.23525711]
[1765297296650,0.00022622,93573.0,93572.0,0.21373915]
[1765297297391,0.01068695,93572.0,93566.0,0.02151796]
[1765297297593,0.2137467,93569.0,93566.0,0.01068764]
[1765297297800,0.00022622,93573.0,93571.0,0.21374053]
[1765297298015,0.00183909,93573.0,93570.0,0.01068718]
[1765297298183,0.22626395,93573.0,93570.0,0.22443021]
[1765297298538,0.00183909,93573.0,93572.0,0.001]
[1765297298771,0.00183909,93573.0,93570.0,0.22443075]
[1765297298981,0.00183909,93573.0,93530.0,0.00199998]
[1765297298982,0.01068707,93571.0,93564.0,0.01068787]
[1765297299173,0.21374171,93571.0,93570.0,0.001]
[1765297299415,0.01068695,93572.0,93563.0,0.01068798]
[1765297299416,0.0106873,93569.0,93563.0,0.01068798]
[1765297299616,0.00183909,93573.0,93570.0,0.21374347]
[1765297299820,0.21557595,93573.0,93572.0,0.001]
[1765297300020,0.21374766,93569.0,93565.0,0.01068775]
[1765297300230,0.01068821,93561.0,93550.0,0.02151796]
[1765297300436,0.01068821,93561.0,93557.0,0.22446139]
[1765297300674,0.22445717,93560.0,93551.0,0.01068935]
[1765297300843,0.01068844,93559.0,93555.0,0.01068889]
[1765297301048,0.01068889,93555.0,93547.0,0.01068981]
[1765297301348,0.01068901,93554.0,93544.0,0.01069015]
[1765297301568,0.00183909,93573.0,93554.0,0.01068901]
[1765297301569,0.02208799,93561.0,93554.0,0.01068901]
[1765297301854,0.00183909,93573.0,93571.0,0.21374089]
[1765297302076,0.00022622,93573.0,93572.0,0.2152308]
[1765297302276,0.00022622,93573.0,93572.0,0.21373915]
[1765297302909,0.00022622,93573.0,93572.0,0.23525711]
[1765297303623,0.00011808,93579.0,93578.0,0.21372544]
[1765297303624,8.661e-05,93579.0,93578.0,0.21372544]
[1765297304048,8.661e-05,93579.0,93578.0,0.2352434]
[1765297304476,8.661e-05,93579.0,93578.0,0.21372544]
[1765297304881,8.661e-05,93579.0,93578.0,0.2352434]
[1765297305225,8.661e-05,93579.0,93578.0,0.2402434]
[1765297305678,8.661e-05,93579.0,93578.0,0.22872358]
[1765297305881,8.661e-05,93579.0,93578.0,0.22472358]
[1765297306340,8.661e-05,93579.0,93578.0,0.22818905]
[1765297306543,8.661e-05,93579.0,93578.0,0.24970624]
[1765297306778,8.661e-05,93579.0,93578.0,0.24870624]
[1765297306981,8.661e-05,93579.0,93578.0,0.54140624]
[1765297307330,8.661e-05,93579.0,93578.0,0.53540624]
[1765297307930,8.661e-05,93579.0,93578.0,0.60292923]
[1765297308155,8.661e-05,93579.0,93578.0,0.59792923]
[1765297308357,0.00108661,93579.0,93578.0,0.59792923]
[1765297308565,0.00508661,93579.0,93578.0,0.59792923]
[1765297308774,0.00408661,93579.0,93578.0,0.53540624]
[1765297308989,0.00508661,93579.0,93578.0,0.53540624]
[1765297309464,0.00408661,93579.0,93578.0,0.53540624]
[1765297309866,8.661e-05,93579.0,93578.0,0.53540624]
[1765297310403,8.661e-05,93579.0,93578.0,0.24470624]
[1765297310629,0.00108661,93579.0,93578.0,0.22320469]
[1765297310838,0.00408661,93579.0,93578.0,0.22320469]
[1765297311017,0.00408661,93579.0,93578.0,0.23320283]
[1765297311200,0.00508661,93579.0,93578.0,0.23320283]
[1765297311401,0.00408661,93579.0,93578.0,0.23320283]
[1765297311827,0.00508661,93579.0,93578.0,0.23320283]
[1765297312594,0.00508661,93579.0,93578.0,0.52390283]
[1765297312922,0.00508661,93579.0,93578.0,0.47390283]
[1765297313347,0.00108661,93579.0,93578.0,0.53642582]
[1765297313575,8.661e-05,93579.0,93578.0,0.53642582]
[1765297313776,0.00308661,93579.0,93578.0,0.53642582]
[1765297313971,0.00408661,93579.0,93578.0,0.53642582]
[1765297314318,0.00408661,93579.0,93578.0,0.46390469]
[1765297314467,0.00408661,93579.0,93578.0,0.2095895]
[1765297314673,0.00408661,93579.0,93578.0,0.20647754]
[1765297315055,0.00308661,93579.0,93578.0,0.18495958]
[1765297315259,0.00308661,93579.0,93578.0,0.20647754]
[1765297315461,0.00308661,93579.0,93578.0,0.20747754]
[1765297315667,8.661e-05,93579.0,93578.0,0.24386235]
[1765297315862,8.661e-05,93579.0,93578.0,0.19572265]
[1765297316062,0.00308661,93579.0,93578.0,0.19572265]
[1765297316263,0.00308661,93579.0,93578.0,0.23212134]
[1765297316467,8.661e-05,93579.0,93578.0,0.19572265]
[1765297316669,8.661e-05,93579.0,93578.0,0.19828516]
[1765297316868,8.661e-05,93579.0,93578.0,0.20228516]
[1765297317071,8.661e-05,93579.0,93578.0,0.20128516]
[1765297317489,8.661e-05,93579.0,93578.0,0.20928516]
[1765297317889,0.00169948,93579.0,93578.0,0.02147925]
[1765297318524,0.00169948,93579.0,93578.0,0.012]
[1765297318782,0.00169948,93579.0,93578.0,0.004]
[1765297319140,0.00169948,93579.0,93578.0,0.009]
[1765297319342,0.00169948,93579.0,93578.0,0.005]
[1765297319566,0.00169948,93579.0,93578.0,0.007]
[1765297320146,0.21375057,93567.0,93561.0,0.14309031]
[1765297320351,0.21375057,93567.0,93546.0,0.10669569]
[1765297320352,0.21375514,93565.0,93563.0,0.02730317]
[1765297320668,0.21375514,93565.0,93534.0,0.09119716]
[1765297320669,0.21380998,93541.0,93539.0,0.03639462]
[1765297320872,0.01069015,93544.0,93534.0,0.03639462]
[1765297321083,0.21379699,93547.0,93537.0,0.03639462]
[1765297321084,0.01068981,93547.0,93537.0,0.03639462]
[1765297321259,0.22450465,93540.0,93538.0,0.03639462]
[1765297321460,0.93787261,93560.0,93519.0,0.01326204]
[1765297321461,0.01068992,93546.0,93540.0,0.01069061]
[1765297321666,0.01068924,93552.0,93543.0,0.01069027]
[1765297321850,0.01068821,93561.0,93555.0,0.01068889]
[1765297322049,0.01068707,93571.0,93555.0,0.01068889]
[1765297322245,0.10692188,93581.0,93560.0,0.01068832]
[1765297322246,0.01068798,93563.0,93560.0,0.01068832]
[1765297322448,0.21378941,93550.0,93549.0,0.02151796]
[1765297322656,0.21380117,93545.0,93539.0,0.03639462]
[1765297322856,0.21380117,93545.0,93537.0,0.03639462]
[1765297323225,0.01069175,93530.0,93526.0,0.05068802]
[1765297323354,0.01069175,93530.0,93503.0,0.01724]
[1765297323355,0.01069381,93512.0,93507.0,0.07240905]
[1765297323572,0.01069381,93512.0,93505.0,0.22458589]
[1765297323573,0.21387751,93512.0,93506.0,0.0106945]
[1765297323877,0.01069461,93505.0,93497.0,0.22460507]
[1765297324131,0.00011797,93512.0,93510.0,0.21387989]
[1765297324261,0.00011797,93512.0,93510.0,0.21377948]
[1765297324463,0.00011797,93512.0,93510.0,0.21356989]
[1765297324698,0.00011797,93512.0,93511.0,0.02151796]
[1765297325107,0.00111797,93512.0,93511.0,0.02151796]
[1765297325516,0.00111797,93512.0,93511.0,0.02286925]
[1765297326162,0.00111797,93512.0,93510.0,0.23508785]
[1765297326376,0.00011797,93512.0,93510.0,0.23508785]
[1765297326581,0.00211797,93512.0,93510.0,0.23508785]
[1765297326793,0.00211797,93512.0,93510.0,0.21356989]
[1765297326947,0.00011797,93512.0,93510.0,0.22356803]
[1765297327152,0.00111797,93512.0,93511.0,0.01244701]
[1765297327358,0.00311797,93512.0,93511.0,0.08821179]
[1765297327708,0.00211797,93512.0,93511.0,0.08821179]
[1765297328014,0.00311797,93512.0,93511.0,0.08821179]
[1765297328221,0.00211797,93512.0,93511.0,0.07669197]
[1765297328629,0.00211797,93512.0,93511.0,0.0780766]
[1765297329053,0.00011797,93512.0,93511.0,0.36739197]
[1765297329281,0.01068947,93550.0,93547.0,0.22448424]
[1765297329474,0.001731,93550.0,93548.0,0.21379204]
[1765297330529,0.001731,93550.0,93548.0,0.21779204]
[1765297330874,0.01957925,93550.0,93548.0,0.21379204]
[1765297331078,0.001731,93550.0,93548.0,0.21879204]
[1765297331663,0.001731,93550.0,93548.0,0.21879375]
[1765297332107,0.21552147,93550.0,93548.0,0.005]
[1765297332314,0.01784825,93549.0,93548.0,0.005]
[1765297332712,0.001731,93550.0,93548.0,0.002]
[1765297332909,0.21540457,93549.0,93548.0,0.002]
[1765297333113,0.01069061,93540.0,93537.0,0.01069095]
[1765297333321,0.01069061,93540.0,93535.0,0.22451366]
[1765297333322,0.22450583,93539.0,93535.0,0.22451366]
[1765297333542,0.01069027,93543.0,93538.0,0.21381548]
[1765297333543,0.01069049,93541.0,93538.0,0.21381548]
[1765297333753,0.01069152,93532.0,93526.0,0.01069221]
[1765297333978,0.01069152,93532.0,93529.0,0.01069187]
[1765297334178,0.01069152,93532.0,93526.0,0.22453422]
[1765297334379,0.22452284,93532.0,93528.0,0.22453128]
[1765297334579,0.01069152,93532.0,93528.0,0.01069198]
[1765297334749,0.01069129,93534.0,93529.0,0.22452749]
[1765297334750,0.01069141,93533.0,93529.0,0.22452749]
[1765297334932,0.01069129,93534.0,93529.0,0.22452749]
[1765297334933,0.01069095,93537.0,93533.0,0.22451863]
[1765297335131,0.01069095,93537.0,93534.0,0.21382554]
[1765297335132,0.01756498,93536.0,93534.0,0.21382554]
[1765297336036,0.01756498,93537.0,93535.0,0.22451303]
[1765297336403,0.21381263,93540.0,93537.0,0.22450986]
[1765297336716,0.00161287,93549.0,93546.0,0.01068992]
[1765297336933,0.00161287,93549.0,93547.0,0.21379609]
[1765297337125,0.01069027,93543.0,93540.0,0.01069061]
[1765297337321,0.01756498,93542.0,93540.0,0.22450267]
[1765297337669,0.01756498,93544.0,93542.0,0.22449634]
[1765297338111,0.00161287,93549.0,93548.0,0.21379398]
[1765297338593,0.00011813,93550.0,93548.0,0.21379398]
[1765297339509,0.00011813,93550.0,93547.0,0.01068981]
[1765297339745,0.01068969,93548.0,93543.0,0.01069027]
[1765297339901,0.01069015,93544.0,93540.0,0.01069061]
[1765297340082,0.01756498,93543.0,93535.0,0.01069118]
[1765297340298,0.01756498,93543.0,93528.0,0.01069198]
[1765297340515,0.01069095,93537.0,93530.0,0.01069175]
[1765297340724,0.22450079,93541.0,93538.0,0.2245066]
[1765297340941,0.21382412,93535.0,93533.0,0.01069141]
[1765297341163,0.00161287,93535.0,93532.0,0.22452148]
[1765297341361,0.00161287,93535.0,93513.0,0.32081019]
[1765297341362,0.01069347,93515.0,93511.0,0.01069392]
[1765297341578,0.02208799,93534.0,93500.0,0.00022648]
[1765297341579,0.01069415,93509.0,93500.0,0.00022648]
[1765297341696,0.22459229,93503.0,93500.0,0.01092166]
[1765297341896,0.21390052,93502.0,93500.0,0.00022648]
[1765297342104,0.00161287,93503.0,93500.0,0.22482538]
[1765297342566,0.00161287,93503.0,93501.0,0.21390054]
[1765297342771,0.001,93509.0,93508.0,0.21388544]
[1765297342907,0.01069392,93511.0,93508.0,0.01069427]
[1765297343121,0.21387884,93511.0,93508.0,0.01069427]
[1765297343318,0.21387884,93511.0,93502.0,0.21389724]
[1765297343319,0.22457904,93509.0,93505.0,0.01069461]
[1765297343555,0.01069427,93508.0,93505.0,0.01069461]
[1765297343979,0.01069415,93509.0,93508.0,0.004]
[1765297344178,0.01069381,93512.0,93508.0,0.004]
[1765297344410,0.21388315,93509.0,93508.0,0.004]
[1765297344823,0.34266454,93510.0,93508.0,0.004]
[1765297344992,0.34266644,93510.0,93508.0,0.004]
[1765297345228,0.34266644,93510.0,93500.0,0.00034445]
[1765297345229,0.21390145,93501.0,93500.0,0.00034445]
[1765297345464,0.58921243,93501.0,93500.0,0.00034445]
[1765297345990,0.58436444,93501.0,93500.0,0.00034445]
[1765297346190,0.23114145,93501.0,93500.0,0.00034445]
[1765297346395,0.3013945,93506.0,93500.0,0.21424819]
[1765297346617,0.06252299,93502.0,93500.0,0.00034445]
[1765297346823,0.00161287,93502.0,93500.0,0.21424695]
[1765297347030,0.50460145,93501.0,93500.0,0.00034445]
[1765297347297,0.52830231,93501.0,93500.0,0.00034445]
[1765297348065,0.29231287,93501.0,93500.0,0.00034445]
[1765297348422,0.00161287,93501.0,93500.0,0.00034445]
[1765297349194,0.13,93502.0,93501.0,0.21390145]
[1765297350783,0.13,93502.0,93500.0,0.21424603]
[1765297351202,0.13,93502.0,93501.0,0.21390145]
[1765297351429,1.06878098,93565.0,93500.0,0.00034445]
[1765297351430,0.01069209,93527.0,93523.0,0.21384984]
[1765297351605,0.00161287,93527.0,93525.0,0.01069232]
[1765297351817,0.02208799,93526.0,93521.0,0.01069278]
[1765297352173,0.34104529,93525.0,93522.0,0.22454503]
[1765297352378,0.01069255,93523.0,93520.0,0.01069289]
[1765297352560,0.01756498,93522.0,93520.0,0.2245498]
[1765297352726,0.01069289,93520.0,93515.0,0.01069347]
[1765297352913,0.01069289,93520.0,93516.0,0.01069335]
[1765297353114,0.02825799,93519.0,93516.0,0.21386547]
[1765297353295,0.02825799,93519.0,93516.0,0.21386565]
[1765297353491,0.01069335,93516.0,93512.0,0.01069381]
[1765297353695,0.01756498,93515.0,93513.0,0.213874]
[1765297353982,0.01917785,93515.0,93513.0,0.213874]
[1765297354664,0.00161287,93515.0,93513.0,0.213874]
[1765297354928,0.01917785,93515.0,93513.0,0.213874]
[1765297355232,0.01917785,93515.0,93513.0,0.214874]
[1765297355423,0.00161287,93515.0,93513.0,0.21587327]
[1765297355548,0.00161287,93515.0,93513.0,0.001]
[1765297355782,0.06252299,93514.0,93513.0,0.001]
[1765297355997,0.01069484,93503.0,93500.0,0.00034445]
[1765297356195,0.21389916,93502.0,93500.0,0.00034445]
[1765297356402,0.11669025,93501.0,93500.0,0.00034445]
[1765297356639,0.17921324,93501.0,93500.0,0.00034445]
[1765297357018,0.19677822,93501.0,93500.0,0.00034445]
[1765297357423,0.48747822,93501.0,93500.0,0.00034445]
[1765297357603,0.46991324,93501.0,93500.0,0.00034445]
[1765297358008,0.45991868,93501.0,93500.0,0.00034445]
[1765297358216,0.46991324,93501.0,93500.0,0.00034445]
[1765297358949,0.47391324,93501.0,93500.0,0.00034445]
[1765297359149,0.47491324,93501.0,93500.0,0.00034445]
[1765297359352,0.58442086,93501.0,93500.0,0.00034445]
[1765297359583,1.35835086,93501.0,93500.0,0.00034445]
[1765297359782,1.36335086,93501.0,93500.0,0.00034445]
[1765297360229,0.47471655,93501.0,93500.0,0.00034445]
[1765297360395,0.51521755,93501.0,93500.0,0.00034445]
[1765297360544,0.36821755,93501.0,93500.0,0.00034445]
[1765297360746,0.36921755,93501.0,93500.0,0.00034445]
[1765297360954,0.46991324,93501.0,93500.0,0.00034445]
[1765297361160,0.58042086,93501.0,93500.0,0.00034445]
[1765297361366,0.58442086,93501.0,93500.0,0.00034445]
[1765297361635,0.58342086,93501.0,93500.0,0.00034445]
[1765297361951,0.89351886,93501.0,93500.0,0.00034445]
[1765297362063,0.58042086,93501.0,93500.0,0.00034445]
[1765297362266,0.01069633,93490.0,93483.0,0.22463942]
[1765297362554,0.31278799,93492.0,93490.0,0.21392538]
[1765297362760,0.60724736,93500.0,93497.0,0.01069553]
[1765297362934,0.22460267,93499.0,93495.0,0.01069575]
[1765297363136,0.22460665,93497.0,93492.0,0.0106961]
[1765297363366,0.01756498,93496.0,93494.0,0.20655483]
[1765297363515,0.01069575,93495.0,93490.0,0.01069633]
[1765297363719,0.01756498,93494.0,93492.0,0.21392162]
[1765297364023,0.01069415,93509.0,93506.0,0.21388971]
[1765297364260,0.01069358,93514.0,93508.0,0.01069427]
[1765297364462,0.22457774,93509.0,93505.0,0.01069461]
[1765297364665,0.01069404,93510.0,93506.0,0.22458359]
[1765297364666,0.22457627,93510.0,93506.0,0.22458359]
[1765297364863,0.24214228,93509.0,93503.0,0.22459118]
[1765297365199,0.2245773,93509.0,93505.0,0.21389158]
[1765297365399,0.21387324,93514.0,93503.0,0.01069484]
[1765297365400,0.00161287,93515.0,93509.0,0.01069415]
[1765297365547,0.01756498,93514.0,93509.0,0.01069415]
[1765297365743,0.29231287,93515.0,93512.0,0.22456949]
[1765297365947,0.29231287,93515.0,93513.0,0.2138736]
[1765297366126,0.29231287,93515.0,93509.0,0.01069415]
[1765297366127,0.01069404,93510.0,93507.0,0.01069438]
[1765297366338,0.29231287,93515.0,93505.0,0.01069461]
[1765297366339,0.01756498,93509.0,93505.0,0.01069461]
[1765297366584,0.01756498,93509.0,93507.0,0.21388663]
[1765297366754,0.01069461,93505.0,93499.0,0.21390388]
[1765297366973,0.01069461,93505.0,93470.0,0.71434305]
[1765297366974,0.01069553,93497.0,93491.0,0.01069621]
[1765297367175,0.01756498,93496.0,93494.0,0.21391615]
[1765297367377,0.01756498,93496.0,93494.0,0.21391723]
[1765297367947,0.00011806,93497.0,93496.0,0.21391289]
[1765297368384,0.00011806,93497.0,93495.0,0.21391518]
[1765297368562,0.00011806,93497.0,93494.0,0.001]
[1765297368563,0.01081359,93497.0,93494.0,0.001]
[1765297368764,0.01756498,93496.0,93494.0,0.001]
[1765297369019,0.01756498,93496.0,93494.0,0.21113711]
[1765297369220,0.00011806,93497.0,93496.0,0.21391289]
[1765297372105,0.00011806,93497.0,93496.0,0.21691289]
[1765297373955,0.00011806,93497.0,93496.0,0.21591289]
[1765297374098,0.00011806,93497.0,93496.0,0.23743085]
[1765297374299,0.00011806,93497.0,93496.0,0.21491289]
[1765297374761,0.00011806,93497.0,93496.0,0.21691289]
[1765297377652,0.00011806,93497.0,93496.0,0.003]
[1765297377653,0.21402866,93497.0,93496.0,0.003]
[1765297377856,0.00011806,93497.0,93496.0,0.21391289]
[1765297378256,0.00011806,93497.0,93496.0,0.21891289]
[1765297379266,0.00011806,93497.0,93496.0,0.002]
[1765297379466,0.00011806,93497.0,93496.0,0.21591289]
[1765297380074,0.00011806,93497.0,93496.0,0.004]
[1765297380255,0.00011806,93497.0,93496.0,0.21591289]
[1765297380461,0.00011806,93497.0,93496.0,0.21391289]
[1765297380661,0.00011806,93497.0,93496.0,0.55593718]
[1765297380899,0.01069107,93536.0,93528.0,0.01069198]
[1765297381116,0.01069187,93529.0,93524.0,0.21384871]
[1765297381342,0.21386242,93519.0,93515.0,0.01069347]
[1765297381518,0.01756498,93518.0,93517.0,0.21386485]
[1765297381719,0.22454859,93521.0,93515.0,0.01069347]
[1765297381720,0.01069301,93519.0,93515.0,0.01069347]
[1765297381972,0.01756498,93518.0,93516.0,0.00957037]
[1765297382159,0.2314282,93518.0,93516.0,0.00957037]
[1765297382335,0.01069301,93519.0,93511.0,0.22457224]
[1765297382336,0.2245657,93514.0,93511.0,0.22457224]
[1765297382543,0.01069324,93517.0,93513.0,0.0106937]
[1765297382719,0.01069324,93517.0,93514.0,0.00957158]
[1765297383065,0.01756498,93518.0,93517.0,0.21386485]
[1765297383238,0.01069324,93517.0,93513.0,0.2245677]
[1765297383419,0.001,93518.0,93515.0,0.22456255]
[1765297383420,0.01169312,93518.0,93515.0,0.22456255]
[1765297383790,0.22453888,93525.0,93522.0,0.22454412]
[1765297383940,0.22454368,93523.0,93519.0,0.01069301]
[1765297384109,0.01756498,93522.0,93520.0,0.21385639]
[1765297384306,0.01069301,93519.0,93516.0,0.22455856]
[1765297384509,0.01069301,93519.0,93515.0,0.01069347]
[1765297384510,0.01069358,93514.0,93509.0,0.01069415]
[1765297384756,0.01069301,93519.0,93516.0,0.01069335]
[1765297384757,0.00161287,93519.0,93516.0,0.01069335]
[1765297384969,0.00199998,93560.0,93533.0,0.01069141]
[1765297384970,0.01068832,93560.0,93533.0,0.01069141]
[1765297385170,0.00226004,93564.0,93533.0,0.01069141]
[1765297385171,0.01068809,93562.0,93535.0,0.2138237]
[1765297385384,0.01756498,93561.0,93535.0,0.2233902]
[1765297385595,0.01756498,93561.0,93535.0,0.24490816]
[1765297385939,0.00226004,93564.0,93536.0,0.2907]
[1765297386177,0.00226004,93564.0,93563.0,0.21375971]
[1765297386844,0.00226004,93564.0,93563.0,0.22375785]
[1765297386994,0.00226004,93564.0,93563.0,0.34197336]
[1765297387457,0.00226004,93564.0,93563.0,0.34297336]
[1765297387651,0.00226004,93564.0,93563.0,0.34497336]
[1765297387860,0.0502,93590.0,93589.0,0.21370032]
[1765297388062,0.05031813,93590.0,93589.0,0.21370032]
[1765297389151,0.26401795,93590.0,93588.0,0.01724]
[1765297389356,0.01068695,93572.0,93561.0,0.01068821]
[1765297389723,0.00161287,93572.0,93569.0,0.0106873]
[1765297389929,0.65756549,93590.0,93587.0,0.22438827]
[1765297389930,0.05031813,93590.0,93587.0,0.22438827]
[1765297390055,0.05031813,93590.0,93589.0,0.21370032]
[1765297390990,0.051931,93590.0,93589.0,0.21370032]
[1765297391164,0.051931,93590.0,93588.0,0.21370123]
[1765297392122,0.051931,93590.0,93589.0,0.003]
[1765297392319,0.05031813,93590.0,93589.0,0.003]
[1765297392576,0.05031813,93590.0,93589.0,0.02151796]
[1765297392776,0.05031813,93590.0,93588.0,0.21470123]
[1765297393199,0.05031813,93590.0,93588.0,0.21370123]
[1765297393321,0.05031813,93590.0,93589.0,0.003]
[1765297393534,0.05105321,93590.0,93589.0,0.003]
[1765297393739,0.05266608,93590.0,93589.0,0.001]
[1765297393965,0.07023106,93590.0,93589.0,0.001]
[1765297394813,0.01068513,93588.0,93584.0,0.22439552]
[1765297395027,0.00161287,93588.0,93587.0,0.22438814]
[1765297395279,0.00161287,93588.0,93585.0,0.22439349]
[1765297395470,0.00161287,93588.0,93586.0,0.21370717]
[1765297395831,0.21531743,93588.0,93584.0,0.224396]
[1765297396052,0.01068535,93586.0,93583.0,0.0106857]
[1765297396257,0.00161287,93586.0,93583.0,0.22439845]
[1765297396471,0.01068581,93582.0,93574.0,0.01068672]
[1765297396695,0.01068581,93582.0,93579.0,0.01068615]
[1765297396696,0.01917785,93582.0,93579.0,0.01068615]
[1765297396857,0.01917785,93582.0,93580.0,0.21371969]
[1765297397051,0.01917785,93582.0,93579.0,0.22440809]
[1765297397260,0.01917785,93582.0,93580.0,0.21371972]
[1765297397624,0.01917785,93582.0,93579.0,0.22440862]
[1765297397831,0.21373372,93575.0,93570.0,0.21374184]
[1765297398045,0.01068901,93554.0,93533.0,0.03672659]
[1765297398247,0.22448645,93547.0,93541.0,0.01069049]
[1765297398555,0.60724736,93560.0,93542.0,0.01069038]
[1765297398556,0.21378956,93550.0,93542.0,0.01069038]
[1765297398771,0.21378956,93550.0,93545.0,0.01069004]
[1765297398772,0.21379292,93549.0,93545.0,0.01069004]
[1765297398928,0.22446593,93556.0,93552.0,0.01068924]
[1765297399109,0.01068809,93562.0,93549.0,0.01068958]
[1765297399346,0.60724736,93570.0,93557.0,0.2137718]
[1765297399525,0.28963044,93559.0,93557.0,0.2137718]
[1765297399731,0.01068867,93557.0,93554.0,0.01068901]
[1765297399972,0.00011808,93557.0,93555.0,0.21377625]
[1765297400390,0.00173095,93557.0,93555.0,0.21377625]
[1765297400591,0.00173095,93557.0,93552.0,0.01068924]
[1765297400791,0.00173095,93557.0,93554.0,0.01068901]
[1765297401033,0.001,93556.0,93554.0,0.22446909]
[1765297401341,0.00161287,93556.0,93554.0,0.22446909]
[1765297401712,0.00011808,93557.0,93554.0,0.22446909]
[1765297401713,0.00011808,93557.0,93556.0,0.2137757]
[1765297402840,0.00011808,93557.0,93556.0,0.2167757]
[1765297403973,0.00011808,93557.0,93556.0,0.2147757]
[1765297404148,0.00011808,93557.0,93556.0,0.22377384]
[1765297404291,0.00011808,93557.0,93556.0,0.22877384]
[1765297404892,0.0502,93590.0,93589.0,0.21370032]
[1765297405111,0.05031806,93590.0,93589.0,0.21370032]
[1765297405940,0.05031806,93590.0,93589.0,0.21470032]
[1765297406349,0.05105314,93590.0,93589.0,0.21470032]
[1765297407243,0.05105314,93590.0,93589.0,0.21770032]
[1765297407472,0.05105314,93590.0,93589.0,0.21370032]
[1765297407713,0.05105314,93590.0,93589.0,0.21470032]
[1765297407876,0.05105314,93590.0,93589.0,0.21970032]
[1765297408079,0.05105314,93590.0,93589.0,0.21370032]
[1765297408489,0.05105314,93590.0,93589.0,0.22070032]
[1765297408685,0.05105314,93590.0,93589.0,0.23721828]
[1765297408947,0.05105314,93590.0,93589.0,0.23521828]
[1765297409075,0.05105314,93590.0,93589.0,0.24021828]
[1765297409421,0.05105314,93590.0,93589.0,0.2517385]
[1765297409764,0.05105314,93590.0,93589.0,0.22070032]
[1765297410050,0.05105314,93590.0,93589.0,0.007]
[1765297410168,0.05266601,93590.0,93589.0,0.002]
[1765297410368,0.05266601,93590.0,93589.0,0.006]
[1765297410820,0.05266601,93590.0,93588.0,0.21370043]
[1765297410989,0.05193093,93590.0,93589.0,0.007]
[1765297411392,0.05193093,93590.0,93589.0,0.003]
[1765297411602,0.05193093,93590.0,93589.0,0.004]
[1765297411807,0.05266601,93590.0,93589.0,0.005]
[1765297412208,0.05266601,93590.0,93589.0,0.004]
[1765297412638,0.05266601,93590.0,93589.0,0.005]
[1765297413049,0.07023099,93590.0,93589.0,0.005]
[1765297413250,0.07023099,93590.0,93589.0,0.001]
[1765297414197,0.22438533,93589.0,93586.0,0.01068535]
[1765297414492,0.05193093,93590.0,93589.0,0.001]
[1765297414796,0.05031806,93590.0,93589.0,0.005]
[1765297414969,0.05031806,93590.0,93589.0,0.03506381]
[1765297415551,0.05031806,93590.0,93589.0,0.31424399]
[1765297416176,0.05031806,93590.0,93589.0,0.33148399]
[1765297416734,0.05031806,93590.0,93589.0,0.32748399]
[1765297416933,0.05031806,93590.0,93589.0,0.33448399]
[1765297417062,0.05031806,93590.0,93589.0,0.32848399]
[1765297417460,0.05031806,93590.0,93589.0,0.33148399]
[1765297417773,0.05031806,93590.0,93589.0,0.32748399]
[1765297417919,0.05031806,93590.0,93589.0,0.33048399]
[1765297418119,0.05031806,93590.0,93589.0,0.33748399]
[1765297418334,0.05031806,93590.0,93589.0,0.32748399]
[1765297418859,0.05031806,93590.0,93589.0,0.33148399]
[1765297419483,0.05031806,93590.0,93589.0,0.04078399]
[1765297419660,0.05031806,93590.0,93589.0,0.15454763]
[1765297419864,0.05031806,93590.0,93589.0,0.15347968]
[1765297420068,0.05031806,93590.0,93589.0,0.14747968]
[1765297420249,0.05105314,93590.0,93589.0,0.15347968]
[1765297420451,0.05105314,93590.0,93589.0,0.14747968]
[1765297420649,0.05105314,93590.0,93589.0,0.14347968]
[1765297420834,0.05105314,93590.0,93589.0,0.15047968]
[1765297421040,0.05105314,93590.0,93589.0,0.14842621]
[1765297421443,0.05105314,93590.0,93589.0,0.14847968]
[1765297421656,0.05105314,93590.0,93589.0,0.15147968]
[1765297421871,0.05105314,93590.0,93589.0,0.15449466]
[1765297422075,0.05105314,93590.0,93589.0,0.15149466]
[1765297422482,0.05105314,93590.0,93589.0,0.15449466]
[1765297422691,0.05105314,93590.0,93589.0,0.14949466]